fUSD/lending_fUSD_20260614
["ID","MTS","AMOUNT","RATE_DAILY","PERIOD"]
[425049203,1781447432000,-699.64833222,0.00015497,2]
[425049223,1781447432000,-699.64833222,0.00015497,2]
[425049251,1781447432000,-689.65335605,0.00015497,2]
[425049252,1781447432000,-689.65335605,0.00015497,2]
[425049249,1781447432000,-689.65335605,0.00015497,2]
[425049242,1781447432000,-689.65335605,0.00015497,2]
[425049241,1781447432000,-689.65335605,0.00015497,2]
[425049247,1781447432000,-689.65335605,0.00015497,2]
[425049240,1781447432000,-689.65335605,0.00015497,2]
[425049243,1781447432000,-689.65335605,0.00015497,2]
[425049245,1781447432000,-689.65335605,0.00015497,2]
[425049250,1781447432000,-689.65335605,0.00015497,2]
[425049246,1781447432000,-689.65335605,0.00015497,2]
[425049254,1781447432000,-440.66364705,0.00015497,2]
[425049253,1781447432000,-689.65335605,0.00015497,2]
[425049221,1781447432000,-699.64833222,0.00015497,2]
[425049244,1781447432000,-689.65335605,0.00015497,2]
[425049239,1781447432000,-689.65335605,0.00015497,2]
[425049248,1781447432000,-689.65335605,0.00015497,2]
[425049229,1781447432000,-318.48791377,0.00015497,2]
[425049216,1781447432000,-699.64833222,0.00015497,2]
[425049218,1781447432000,-699.64833222,0.00015497,2]
[425049217,1781447432000,-699.64833222,0.00015497,2]
[425049226,1781447432000,-699.64833222,0.00015497,2]
[425049227,1781447432000,-699.64833222,0.00015497,2]
[425049232,1781447432000,-699.64833222,0.00015497,2]
[425049228,1781447432000,-699.64833222,0.00015497,2]
[425049237,1781447432000,-689.65335605,0.00015497,2]
[425049235,1781447432000,-699.64833222,0.00015497,2]
[425049231,1781447432000,-699.64833222,0.00015497,2]
[425049230,1781447432000,-381.16041845,0.00015497,2]
[425049236,1781447432000,-689.65335605,0.00015497,2]
[425049233,1781447432000,-699.64833222,0.00015497,2]
[425049238,1781447432000,-689.65335605,0.00015497,2]
[425049234,1781447432000,-699.64833222,0.00015497,2]
[425049284,1781447438000,-151.38,0.0001613,2]
[425049292,1781447438000,-907.49,0.00016235,2]
[425049294,1781447438000,-2000.0,0.00016235,2]
[425049335,1781447438000,-491.13,0.00016254,2]
[425049285,1781447438000,-150.0,0.000162,4]
[425049281,1781447438000,-150.0,0.00016097,2]
[425049300,1781447438000,-2000.0,0.00016235,2]
[425049282,1781447438000,-824.38,0.00016111,2]
[425049283,1781447438000,-421.67,0.00016115,2]
[425049296,1781447438000,-2000.0,0.00016235,2]
[425049315,1781447438000,-4239.56451002,0.00016238,2]
[425049302,1781447438000,-1327.59,0.00016235,2]
[425049307,1781447438000,-1894.79,0.00016236,2]
[425049313,1781447438000,-1886.49,0.00016236,2]
[425049309,1781447438000,-150.0,0.00016236,2]
[425049311,1781447438000,-2000.0,0.00016236,2]
[425049305,1781447438000,-2919.17433124,0.00016235,5]
[425049332,1781447438000,-150.0,0.00016253,2]
[425049330,1781447438000,-513.19,0.00016253,2]
[425049290,1781447438000,-2000.0,0.00016235,2]
[425049298,1781447438000,-2000.0,0.00016235,2]
[425049280,1781447438000,-216.06106235,0.00016079,2]
[425049265,1781447438000,-153.44,0.000155,2]
[425049286,1781447438000,-150.0,0.000162,4]
[425049318,1781447438000,-1178.72,0.00016253,2]
[425049262,1781447438000,-189.65335596,0.00015497,2]
[425049263,1781447438000,-2173.71147121,0.000155,2]
[425049261,1781447438000,-500.0,0.00015497,2]
[425049264,1781447438000,-350.72852879,0.000155,2]
[425049260,1781447438000,-689.65335605,0.00015497,2]
[425049268,1781447438000,-1048.27644268,0.00015758,2]
[425049267,1781447438000,-1001.25495256,0.00015757,2]
[425049266,1781447438000,-338.62,0.000155,2]
[425049279,1781447438000,-307.54,0.00016036,2]
[425049273,1781447438000,-151.52206243,0.00015894,2]
[425049271,1781447438000,-299.99,0.00015894,2]
[425049274,1781447438000,-150.0,0.00015941,2]
[425049272,1781447438000,-999.99,0.00015894,2]
[425049270,1781447438000,-3277.45,0.00015856,2]
[425049269,1781447438000,-150.0,0.00015784,2]
[425049275,1781447438000,-500.0,0.00015946,3]
[425049278,1781447438000,-166.66,0.00016008,2]
[425049277,1781447438000,-300.0,0.00016,2]
[425049288,1781447438000,-2000.0,0.00016235,2]
[425049276,1781447438000,-166.86,0.00015977,2]
[425049337,1781447438000,-23796.43,0.00016254,2]
[425049259,1781447438000,-248.989709,0.00015497,2]
[425049319,1781447438000,-3000.0,0.00016253,2]
[425049366,1781447438000,-151.0,0.0001629,2]
[425049364,1781447438000,-152.0,0.0001629,2]
[425049367,1781447438000,-153.0,0.0001629,2]
[425049369,1781447438000,-151.0,0.0001629,2]
[425049372,1781447438000,-200.0,0.00016354,2]
[425049373,1781447438000,-2000.0,0.00016366,2]
[425049378,1781447438000,-294.68,0.00016399,2]
[425049377,1781447438000,-179.0,0.00016373,2]
[425049382,1781447438000,-1438.06,0.00016418,2]
[425049368,1781447438000,-150.0,0.0001629,2]
[425049375,1781447438000,-2000.0,0.00016373,2]
[425049374,1781447438000,-1226.86,0.00016373,2]
[425049380,1781447438000,-1628.3,0.00016399,2]
[425049381,1781447438000,-150.0,0.00016409,2]
[425049384,1781447438000,-553.31,0.00016438,2]
[425049383,1781447438000,-307.54,0.00016437,2]
[425049386,1781447438000,-661.9,0.00016438,2]
[425049385,1781447438000,-889.81,0.00016438,2]
[425049387,1781447438000,-171.031884,0.00016438,2]
[425049321,1781447438000,-572.54,0.00016253,2]
[425049379,1781447438000,-893.14,0.00016399,2]
[425049365,1781447438000,-152.0,0.0001629,2]
[425049376,1781447438000,-331.9,0.00016373,2]
[425049361,1781447438000,-153.0,0.0001629,2]
[425049363,1781447438000,-152.0,0.0001629,2]
[425049341,1781447438000,-2000.0,0.00016254,2]
[425049326,1781447438000,-2000.0,0.00016253,2]
[425049339,1781447438000,-1488.56,0.00016254,2]
[425049324,1781447438000,-2000.0,0.00016253,2]
[425049328,1781447438000,-2000.0,0.00016253,2]
[425049355,1781447438000,-294.81,0.0001629,2]
[425049346,1781447438000,-196.18012445,0.00016289,2]
[425049343,1781447438000,-713.83,0.00016254,2]
[425049358,1781447438000,-151.0,0.0001629,2]
[425049354,1781447438000,-589.09,0.0001629,2]
[425049362,1781447438000,-150.0,0.0001629,2]
[425049356,1781447438000,-151.0,0.0001629,2]
[425049348,1781447438000,-502.64,0.00016289,2]
[425049352,1781447438000,-150.0,0.00016289,2]
[425049359,1781447438000,-152.0,0.0001629,2]
[425049350,1781447438000,-151.0,0.00016289,2]
[425049357,1781447438000,-152.0,0.0001629,2]
[425049360,1781447438000,-150.0,0.0001629,2]
[425049371,1781447438000,-166.66,0.00016338,2]
[425049353,1781447438000,-151.0,0.00016289,2]
[425049370,1781447438000,-28738.69314892,0.00016325,2]
[425049425,1781447439000,-166.66,0.00017776,2]
[425049429,1781447439000,-212.873314,0.00017798,2]
[425049426,1781447439000,-165.138087,0.00017798,2]
[425049427,1781447439000,-212.492188,0.00017798,2]
[425049424,1781447439000,-151.0,0.0001777,2]
[425049416,1781447439000,-4900.0,0.000176,6]
[425049422,1781447439000,-151.0,0.0001777,2]
[425049420,1781447439000,-1179.26,0.0001777,2]
[425049418,1781447439000,-7300.0,0.000177,6]
[425049428,1781447439000,-167.33904,0.00017798,2]
[425049423,1781447439000,-151.0,0.0001777,2]
[425049430,1781447439000,-9800.0,0.000178,6]
[425049438,1781447439000,-544.25311561,0.00017923,2]
[425049432,1781447439000,-1555.5,0.00017866,2]
[425049431,1781447439000,-2500.0,0.00017823,2]
[425049435,1781447439000,-500.0,0.00017922,2]
[425049442,1781447439000,-350.0,0.00018,2]
[425049433,1781447439000,-230.681529,0.00017874,2]
[425049434,1781447439000,-12200.0,0.000179,6]
[425049441,1781447439000,-150.00000001,0.00018,4]
[425049439,1781447439000,-1422.0775323,0.00017923,2]
[425049440,1781447439000,-37984.68446882,0.0001799,2]
[425049436,1781447439000,-921.83140627,0.00017923,2]
[425049443,1781447439000,-500.0,0.00018022,2]
[425049417,1781447439000,-307.54,0.0001764,2]
[425049421,1781447439000,-151.0,0.0001777,2]
[425049414,1781447439000,-2400.0,0.000175,6]
[425049393,1781447439000,-863.11,0.00016931,2]
[425049415,1781447439000,-230.681529,0.00017576,2]
[425049396,1781447439000,-497.00089722,0.00016967,2]
[425049392,1781447439000,-307.54,0.00016838,2]
[425049388,1781447439000,-353.45,0.00016453,2]
[425049390,1781447439000,-166.66,0.00016668,2]
[425049394,1781447439000,-536.7,0.00016932,2]
[425049444,1781447439000,-353.3,0.00018022,2]
[425049389,1781447439000,-200.0,0.00016566,2]
[425049391,1781447439000,-168.44,0.00016712,2]
[425049395,1781447439000,-642.04,0.00016932,2]
[425049397,1781447439000,-166.66,0.00016998,2]
[425049402,1781447439000,-230.681529,0.00017129,2]
[425049400,1781447439000,-361.00654364,0.00017048,2]
[425049413,1781447439000,-230.681529,0.00017427,2]
[425049401,1781447439000,-150.0,0.000171,4]
[425049399,1781447439000,-300.0,0.00017048,2]
[425049398,1781447439000,-300.0,0.00017047,2]
[425049406,1781447439000,-230.681529,0.00017278,2]
[425049407,1781447439000,-1500.0,0.00017318,2]
[425049403,1781447439000,-2159.84718778,0.0001713,2]
[425049404,1781447439000,-3201.64,0.00017144,2]
[425049409,1781447439000,-166.66,0.00017328,2]
[425049411,1781447439000,-836.42,0.00017424,2]
[425049419,1781447439000,-230.681529,0.00017725,2]
[425049408,1781447439000,-195.77958843,0.00017322,2]
[425049412,1781447439000,-622.18,0.00017425,2]
[425049410,1781447439000,-1617.55,0.00017333,2]
[425049405,1781447439000,-307.54,0.00017239,2]
[425049445,1781447439000,-500.0,0.00018022,2]
[425049437,1781447439000,-446.92637477,0.00017923,2]
[425049446,1781447439000,-500.0,0.00018022,2]
[425049483,1781447439000,-500.0,0.00018022,2]
[425049482,1781447439000,-500.0,0.00018022,2]
[425049484,1781447439000,-500.0,0.00018022,2]
[425049485,1781447439000,-500.0,0.00018022,2]
[425049486,1781447439000,-500.0,0.00018022,2]
[425049487,1781447439000,-500.0,0.00018022,2]
[425049491,1781447439000,-500.0,0.00018022,2]
[425049488,1781447439000,-500.0,0.00018022,2]
[425049489,1781447439000,-500.0,0.00018022,2]
[425049490,1781447439000,-500.0,0.00018022,2]
[425049492,1781447439000,-179.0,0.00018022,2]
[425049493,1781447439000,-500.0,0.00018022,2]
[425049478,1781447439000,-500.0,0.00018022,2]
[425049495,1781447439000,-3000.0,0.00018023,2]
[425049497,1781447439000,-2000.0,0.00018023,2]
[425049498,1781447439000,-173.3,0.00018023,2]
[425049496,1781447439000,-475.9542,0.00018023,2]
[425049499,1781447439000,-173.3,0.00018023,2]
[425049500,1781447439000,-173.3,0.00018023,2]
[425049501,1781447439000,-1218.6353875,0.000181,2]
[425049502,1781447439000,-161.66201745,0.000181,2]
[425049503,1781447439000,-500.0,0.00018122,2]
[425049504,1781447439000,-500.0,0.00018122,2]
[425049505,1781447439000,-243.29635154,0.00018122,2]
[425049448,1781447439000,-500.0,0.00018022,2]
[425049506,1781447439000,-502.34534348,0.00018122,2]
[425049494,1781447439000,-230.681532,0.00018023,2]
[425049480,1781447439000,-500.0,0.00018022,2]
[425049507,1781447439000,-500.0,0.00018122,2]
[425049468,1781447439000,-500.0,0.00018022,2]
[425049481,1781447439000,-500.0,0.00018022,2]
[425049449,1781447439000,-500.0,0.00018022,2]
[425049452,1781447439000,-448.02690944,0.00018022,2]
[425049453,1781447439000,-500.0,0.00018022,2]
[425049451,1781447439000,-500.0,0.00018022,2]
[425049450,1781447439000,-500.0,0.00018022,2]
[425049454,1781447439000,-500.0,0.00018022,2]
[425049456,1781447439000,-500.0,0.00018022,2]
[425049466,1781447439000,-500.0,0.00018022,2]
[425049455,1781447439000,-500.0,0.00018022,2]
[425049458,1781447439000,-500.0,0.00018022,2]
[425049461,1781447439000,-500.0,0.00018022,2]
[425049464,1781447439000,-500.0,0.00018022,2]
[425049447,1781447439000,-500.0,0.00018022,2]
[425049459,1781447439000,-500.0,0.00018022,2]
[425049463,1781447439000,-500.0,0.00018022,2]
[425049470,1781447439000,-500.0,0.00018022,2]
[425049472,1781447439000,-504.85617891,0.00018022,2]
[425049476,1781447439000,-500.0,0.00018022,2]
[425049471,1781447439000,-500.0,0.00018022,2]
[425049467,1781447439000,-150.0,0.00018022,2]
[425049479,1781447439000,-500.0,0.00018022,2]
[425049469,1781447439000,-500.0,0.00018022,2]
[425049462,1781447439000,-500.0,0.00018022,2]
[425049460,1781447439000,-500.0,0.00018022,2]
[425049465,1781447439000,-505.02166038,0.00018022,2]
[425049457,1781447439000,-500.0,0.00018022,2]
[425049474,1781447439000,-500.0,0.00018022,2]
[425049544,1781447440000,-500.0,0.00018161,2]
[425049547,1781447440000,-179.17432467,0.00018161,2]
[425049555,1781447440000,-500.0,0.00018955,2]
[425049545,1781447440000,-500.0,0.00018161,2]
[425049539,1781447440000,-500.0,0.00018161,2]
[425049541,1781447440000,-500.0,0.00018161,2]
[425049540,1781447440000,-500.0,0.00018161,2]
[425049542,1781447440000,-500.0,0.00018161,2]
[425049546,1781447440000,-500.0,0.00018161,2]
[425049543,1781447440000,-500.0,0.00018161,2]
[425049537,1781447440000,-500.0,0.00018161,2]
[425049549,1781447440000,-693.64602143,0.000184,2]
[425049554,1781447440000,-500.0,0.00018937,2]
[425049550,1781447440000,-843.6,0.0001841,2]
[425049551,1781447440000,-1613.0535,0.00018414,2]
[425049553,1781447440000,-260.8390885,0.00018861,2]
[425049552,1781447440000,-166.66,0.00018754,2]
[425049556,1781447440000,-500.0,0.00018955,2]
[425049567,1781447440000,-895.83,0.00018981,2]
[425049566,1781447440000,-389.71,0.00018981,2]
[425049558,1781447440000,-500.0,0.00018955,2]
[425049557,1781447440000,-500.0,0.00018955,2]
[425049559,1781447440000,-923.48,0.00018955,2]
[425049532,1781447440000,-500.0,0.00018161,2]
[425049548,1781447440000,-1460.48,0.000182,2]
[425049536,1781447440000,-500.0,0.00018161,2]
[425049530,1781447440000,-500.0,0.00018161,2]
[425049535,1781447440000,-500.0,0.00018161,2]
[425049564,1781447440000,-500.0,0.00018955,2]
[425049517,1781447440000,-500.0,0.00018122,2]
[425049508,1781447440000,-500.0,0.00018122,2]
[425049509,1781447440000,-500.0,0.00018122,2]
[425049518,1781447440000,-500.0,0.00018122,2]
[425049511,1781447440000,-500.0,0.00018122,2]
[425049516,1781447440000,-923.48,0.00018122,2]
[425049513,1781447440000,-500.0,0.00018122,2]
[425049514,1781447440000,-500.0,0.00018122,2]
[425049515,1781447440000,-923.48,0.00018122,2]
[425049519,1781447440000,-500.0,0.00018122,2]
[425049538,1781447440000,-500.0,0.00018161,2]
[425049521,1781447440000,-500.0,0.00018122,2]
[425049525,1781447440000,-500.0,0.00018161,2]
[425049520,1781447440000,-500.0,0.00018122,2]
[425049522,1781447440000,-824.38,0.00018125,2]
[425049523,1781447440000,-421.67,0.00018129,2]
[425049524,1781447440000,-6280.0,0.00018137,2]
[425049527,1781447440000,-500.0,0.00018161,2]
[425049526,1781447440000,-500.0,0.00018161,2]
[425049528,1781447440000,-500.0,0.00018161,2]
[425049531,1781447440000,-500.0,0.00018161,2]
[425049533,1781447440000,-500.0,0.00018161,2]
[425049534,1781447440000,-500.0,0.00018161,2]
[425049529,1781447440000,-500.0,0.00018161,2]
[425049560,1781447440000,-923.48,0.00018955,2]
[425049602,1781447440000,-200.0,0.0002,2]
[425049562,1781447440000,-500.0,0.00018955,2]
[425049594,1781447440000,-1315.68132558,0.0002,2]
[425049597,1781447440000,-52492.26681712,0.0002,2]
[425049599,1781447440000,-13133.948557,0.0002,2]
[425049596,1781447440000,-1062.0163102,0.0002,2]
[425049598,1781447440000,-8000.0,0.0002,2]
[425049601,1781447440000,-1340.0,0.0002,2]
[425049600,1781447440000,-152.0,0.0002,2]
[425049619,1781447440000,-350.0,0.0002,2]
[425049603,1781447440000,-322.0,0.0002,2]
[425049605,1781447440000,-1506.0,0.0002,2]
[425049604,1781447440000,-167.0,0.0002,2]
[425049595,1781447440000,-200.0,0.0002,2]
[425049607,1781447440000,-503.0,0.0002,2]
[425049610,1781447440000,-154.0,0.0002,2]
[425049609,1781447440000,-410.0,0.0002,2]
[425049611,1781447440000,-168.0,0.0002,2]
[425049616,1781447440000,-12270.15,0.0002,2]
[425049612,1781447440000,-1019.0,0.0002,2]
[425049614,1781447440000,-284.0,0.0002,2]
[425049613,1781447440000,-324.0,0.0002,2]
[425049618,1781447440000,-2180.312704,0.0002,2]
[425049615,1781447440000,-689.0,0.0002,2]
[425049617,1781447440000,-3189.0,0.0002,2]
[425049565,1781447440000,-1672.7364795,0.00018962,2]
[425049608,1781447440000,-152.0,0.0002,2]
[425049593,1781447440000,-26858.02838163,0.0002,2]
[425049606,1781447440000,-233.0,0.0002,2]
[425049588,1781447440000,-1558.54790556,0.0002,2]
[425049589,1781447440000,-179.33945779,0.0002,2]
[425049561,1781447440000,-500.0,0.00018955,2]
[425049563,1781447440000,-500.0,0.00018955,2]
[425049568,1781447440000,-1563.14,0.00018981,2]
[425049570,1781447440000,-156.93,0.00019001,2]
[425049578,1781447440000,-1734.62772924,0.0001951,2]
[425049571,1781447440000,-365.45326147,0.0001901,7]
[425049569,1781447440000,-160.0,0.00019,2]
[425049579,1781447440000,-166.66,0.00019732,2]
[425049576,1781447440000,-626.52,0.0001938,2]
[425049574,1781447440000,-20480.61,0.00019178,2]
[425049575,1781447440000,-589.39,0.0001938,2]
[425049573,1781447440000,-500.0,0.00019055,2]
[425049572,1781447440000,-500.0,0.00019055,2]
[425049577,1781447440000,-446.92637474,0.00019419,2]
[425049584,1781447440000,-923.48,0.00019999,2]
[425049587,1781447440000,-5295.0149003,0.0002,2]
[425049586,1781447440000,-500.0,0.00019999,2]
[425049591,1781447440000,-4012.87947867,0.0002,2]
[425049583,1781447440000,-500.0,0.00019999,2]
[425049590,1781447440000,-26001.37641089,0.0002,2]
[425049581,1781447440000,-921.83140623,0.00019941,2]
[425049592,1781447440000,-3950.0,0.0002,2]
[425049582,1781447440000,-500.0,0.00019999,2]
[425049580,1781447440000,-1460.48,0.000199,2]
[425049585,1781447440000,-500.0,0.00019999,2]
[425049663,1781447441000,-500.0,0.00021499,2]
[425049660,1781447441000,-316.88,0.00021243,2]
[425049662,1781447441000,-316.88,0.00021459,2]
[425049655,1781447441000,-2180.312704,0.00021,2]
[425049659,1781447441000,-1934.38338736,0.00021154,2]
[425049656,1781447441000,-350.0,0.00021,2]
[425049658,1781447441000,-397.0,0.00021,2]
[425049653,1781447441000,-689.0,0.00021,2]
[425049647,1781447441000,-152.0,0.00021,2]
[425049649,1781447441000,-154.0,0.00021,2]
[425049661,1781447441000,-1460.48,0.000213,2]
[425049657,1781447441000,-190.0,0.00021,2]
[425049654,1781447441000,-3189.0,0.00021,2]
[425049673,1781447441000,-921.83140623,0.00021959,2]
[425049666,1781447441000,-58554.23779167,0.000215,2]
[425049665,1781447441000,-500.0,0.00021499,2]
[425049676,1781447441000,-322.0,0.00022,2]
[425049671,1781447441000,-2005.9555727,0.00021702,2]
[425049667,1781447441000,-226.01758824,0.000215,2]
[425049670,1781447441000,-12270.15,0.00021642,2]
[425049668,1781447441000,-13062.49928012,0.00021508,2]
[425049674,1781447441000,-448.52819464,0.00022,3]
[425049675,1781447441000,-300.0,0.00022,2]
[425049669,1781447441000,-316.89,0.00021531,2]
[425049672,1781447441000,-5000.0,0.00021918,2]
[425049648,1781447441000,-410.0,0.00021,2]
[425049664,1781447441000,-500.0,0.00021499,2]
[425049650,1781447441000,-168.0,0.00021,2]
[425049628,1781447441000,-281.19,0.00020548,2]
[425049644,1781447441000,-167.0,0.00021,2]
[425049629,1781447441000,-1865.36488656,0.00020606,2]
[425049677,1781447441000,-167.0,0.00022,2]
[425049620,1781447441000,-400.0,0.0002,2]
[425049621,1781447441000,-190.0,0.0002,2]
[425049622,1781447441000,-1798.80895522,0.00020058,2]
[425049623,1781447441000,-824.38,0.00020139,2]
[425049627,1781447441000,-843.6,0.00020381,2]
[425049625,1781447441000,-13062.49928012,0.00020313,2]
[425049626,1781447441000,-316.88,0.00020329,2]
[425049624,1781447441000,-421.67,0.00020143,2]
[425049630,1781447441000,-7000.0,0.00020674,3]
[425049631,1781447441000,-23046.1611238,0.000207,2]
[425049645,1781447441000,-233.0,0.00021,2]
[425049633,1781447441000,-166.66,0.0002071,2]
[425049637,1781447441000,-500.0,0.00020999,2]
[425049635,1781447441000,-446.92637474,0.00020914,2]
[425049638,1781447441000,-500.0,0.00020999,2]
[425049636,1781447441000,-316.88,0.00020998,2]
[425049632,1781447441000,-316.88,0.00020708,2]
[425049639,1781447441000,-10378.40174066,0.00021,2]
[425049640,1781447441000,-1213.58353024,0.00021,2]
[425049641,1781447441000,-200.29521905,0.00021,2]
[425049642,1781447441000,-200.0,0.00021,2]
[425049651,1781447441000,-324.0,0.00021,2]
[425049652,1781447441000,-284.0,0.00021,2]
[425049643,1781447441000,-322.0,0.00021,2]
[425049634,1781447441000,-13062.49928012,0.0002091,2]
[425049680,1781447441000,-157.0,0.00022,2]
[425049646,1781447441000,-503.0,0.00021,2]
[425049684,1781447441000,-168.0,0.00022,2]
[425049709,1781447441000,-151.0,0.0002225,2]
[425049711,1781447441000,-151.0,0.0002225,2]
[425049713,1781447441000,-151.0,0.0002225,2]
[425049714,1781447441000,-151.0,0.0002225,2]
[425049724,1781447441000,-151.0,0.0002225,2]
[425049715,1781447441000,-151.0,0.0002225,2]
[425049725,1781447441000,-151.0,0.0002225,2]
[425049722,1781447441000,-151.0,0.0002225,2]
[425049719,1781447441000,-151.0,0.0002225,2]
[425049718,1781447441000,-151.0,0.0002225,2]
[425049720,1781447441000,-151.0,0.0002225,2]
[425049717,1781447441000,-151.0,0.0002225,2]
[425049682,1781447441000,-154.0,0.00022,2]
[425049721,1781447441000,-151.0,0.0002225,2]
[425049723,1781447441000,-151.0,0.0002225,2]
[425049737,1781447441000,-26316.88739223,0.000225,2]
[425049730,1781447441000,-1016.07372598,0.000223,2]
[425049728,1781447441000,-1080.9230152,0.000223,2]
[425049726,1781447441000,-5188.5534803,0.000223,2]
[425049734,1781447441000,-371.58137948,0.00022426,2]
[425049732,1781447441000,-843.6,0.00022353,2]
[425049727,1781447441000,-176.5109835,0.000223,2]
[425049731,1781447441000,-546.7324081,0.000223,2]
[425049735,1781447441000,-500.0,0.00022499,2]
[425049729,1781447441000,-163.2523601,0.000223,2]
[425049733,1781447441000,-446.92637474,0.0002241,2]
[425049736,1781447441000,-923.48,0.00022499,2]
[425049708,1781447441000,-151.0,0.0002225,2]
[425049738,1781447441000,-5188.5534803,0.000225,2]
[425049716,1781447441000,-2080.17592889,0.0002225,2]
[425049710,1781447441000,-151.0,0.0002225,2]
[425049707,1781447441000,-151.0,0.0002225,2]
[425049681,1781447441000,-410.0,0.00022,2]
[425049679,1781447441000,-503.0,0.00022,2]
[425049678,1781447441000,-233.0,0.00022,2]
[425049685,1781447441000,-324.0,0.00022,2]
[425049686,1781447441000,-1665.0,0.00022,2]
[425049683,1781447441000,-503.24,0.00022,2]
[425049688,1781447441000,-689.0,0.00022,2]
[425049690,1781447441000,-2180.312704,0.00022,2]
[425049699,1781447441000,-546.7324081,0.000221,2]
[425049698,1781447441000,-1016.07372598,0.000221,2]
[425049701,1781447441000,-244.65173129,0.0002211,2]
[425049692,1781447441000,-450.0,0.00022,2]
[425049687,1781447441000,-284.0,0.00022,2]
[425049700,1781447441000,-13062.49928012,0.00022105,2]
[425049689,1781447441000,-3189.0,0.00022,2]
[425049712,1781447441000,-151.0,0.0002225,2]
[425049702,1781447441000,-824.38,0.00022153,2]
[425049705,1781447441000,-151.0,0.0002225,2]
[425049704,1781447441000,-308.24,0.000222,2]
[425049703,1781447441000,-421.67,0.00022158,2]
[425049706,1781447441000,-151.0,0.0002225,2]
[425049697,1781447441000,-163.2523601,0.000221,2]
[425049695,1781447441000,-176.5109835,0.000221,2]
[425049694,1781447441000,-5188.5534803,0.000221,2]
[425049691,1781447441000,-350.0,0.00022,2]
[425049693,1781447441000,-190.0,0.00022,2]
[425049696,1781447441000,-1080.9230152,0.000221,2]
[425049755,1781447442000,-1016.07372598,0.00023,2]
[425049758,1781447442000,-233.0,0.00023,2]
[425049760,1781447442000,-410.0,0.00023,2]
[425049752,1781447442000,-5188.5534803,0.000228,2]
[425049754,1781447442000,-1080.9230152,0.00023,2]
[425049762,1781447442000,-168.0,0.00023,2]
[425049763,1781447442000,-324.0,0.00023,2]
[425049773,1781447442000,-1016.07372598,0.000232,2]
[425049765,1781447442000,-689.0,0.00023,2]
[425049764,1781447442000,-284.0,0.00023,2]
[425049756,1781447442000,-322.0,0.00023,2]
[425049753,1781447442000,-5188.5534803,0.00023,2]
[425049761,1781447442000,-155.673382,0.00023,2]
[425049739,1781447442000,-176.5109835,0.000225,2]
[425049757,1781447442000,-167.0,0.00023,2]
[425049750,1781447442000,-13062.49928012,0.00022703,2]
[425049751,1781447442000,-2157.14243826,0.00022798,2]
[425049748,1781447442000,-1460.48,0.000227,7]
[425049746,1781447442000,-163.2523601,0.000227,2]
[425049747,1781447442000,-1016.07372598,0.000227,2]
[425049742,1781447442000,-1016.07372598,0.000225,2]
[425049740,1781447442000,-1080.9230152,0.000225,2]
[425049749,1781447442000,-546.7324081,0.000227,2]
[425049743,1781447442000,-546.7324081,0.000225,2]
[425049744,1781447442000,-544.25311559,0.0002261,2]